fUST/lending_fUST_20251006
["ID","MTS","AMOUNT","RATE_DAILY","PERIOD"]
[389575846,1759723857078,-500.0,0.00016712,2]
[389575849,1759723857088,-500.0,0.00016712,2]
[389575851,1759723857098,-500.0,0.00016712,2]
[389575853,1759723857107,-500.0,0.00016712,2]
[389575854,1759723857116,-500.0,0.00016712,2]
[389575856,1759723857126,-500.0,0.00016712,2]
[389575859,1759723857135,-546.79,0.00016712,2]
[389575861,1759723857145,-500.0,0.00016712,2]
[389575863,1759723857155,-933.08,0.00016712,2]
[389575865,1759723857165,-605.12,0.00016712,2]
[389575867,1759723857175,-500.0,0.00016712,2]
[389575869,1759723857184,-297.5145665,0.00016754,2]
[389575871,1759723857194,-587.6575632,0.00016754,2]
[389575873,1759723857204,-300.0,0.00016766,2]
[389575875,1759723857213,-300.0,0.00016766,2]
[389575877,1759723857223,-300.0,0.00016766,2]
[389575879,1759723857232,-300.0,0.00016766,2]
[389575881,1759723857241,-300.0,0.00016766,2]
[389575883,1759723857252,-300.0,0.00016766,2]
[389575885,1759723857261,-300.0,0.00016766,2]
[389575887,1759723857270,-300.0,0.00016766,2]
[389575889,1759723857280,-300.0,0.00016766,2]
[389575891,1759723857290,-300.0,0.00016766,2]
[389575893,1759723857299,-300.0,0.00016766,2]
[389575895,1759723857308,-300.0,0.00016766,2]
[389575897,1759723857317,-300.0,0.00016766,2]
[389575899,1759723857326,-300.0,0.00016766,2]
[389575901,1759723857336,-300.0,0.00016766,2]
[389575903,1759723857345,-600.0,0.00016766,2]
[389575905,1759723857355,-366.6240207,0.00016777,2]
[389575907,1759723857365,-457.07562314,0.00016781,2]
[389575909,1759723857375,-247.0,0.00016795,2]
[389575911,1759723857384,-264.0,0.00016803,2]
[389575913,1759723857393,-168.0,0.00016829,2]
[389575915,1759723857403,-914.15124629,0.00016881,2]
[389575917,1759723857413,-177.08113232,0.00016886,2]
[389575919,1759723857422,-348.0,0.00016909,2]
[389575921,1759723857432,-595.029133,0.0001691,2]
[389575923,1759723857441,-162.6680534,0.0001691,2]
[389575925,1759723857451,-162.6680534,0.0001691,2]
[389575927,1759723857460,-247.0,0.00016934,2]
[389575929,1759723857469,-326.0,0.00016955,2]
[389575931,1759723857479,-247.0,0.00016958,2]
[389575933,1759723857489,-374.95130688,0.00016973,2]
[389575949,1759723857634,-500.0,0.00016973,2]
[389575951,1759723857643,-177.05021986,0.00016973,2]
[389575953,1759723857653,-500.3459826,0.00016973,2]
[389575955,1759723857662,-500.0,0.00016973,2]
[389575956,1759723857672,-19292.2273969,0.00016976,2]
[389575958,1759723857682,-830.5658391,0.00016979,2]
[389575960,1759723857691,-8517.537067,0.00016979,2]
[389575962,1759723857700,-788.303477,0.00016979,2]
[389575964,1759723857709,-1378.1398504,0.00016979,2]
[389575966,1759723857719,-1462.94254067,0.00016983,2]
[389575968,1759723857729,-500.0,0.00016986,2]
[389575970,1759723857738,-240.54901209,0.00016986,2]
[389575972,1759723857747,-198.0,0.00016986,2]
[389575974,1759723857757,-440.22483413,0.00016986,2]
[389575976,1759723857766,-151.90914309,0.00016986,2]
[389575978,1759723857775,-151.0,0.00016986,2]
[389575980,1759723857784,-1237.0,0.00016986,2]
[389575982,1759723857794,-500.0,0.00016986,2]
[389575984,1759723857804,-188.66048517,0.00016986,2]
[389575986,1759723857813,-151.0,0.00016986,2]
[389575988,1759723857822,-156.0077614,0.00016986,2]
[389575990,1759723857832,-198.98460991,0.00016986,2]
[389575992,1759723857840,-151.0,0.00016986,2]
[389575994,1759723857849,-151.0,0.00016986,2]
[389575996,1759723857860,-198.67272043,0.00016986,2]
[389575998,1759723857869,-500.0,0.00016986,2]
[389576000,1759723857878,-396.09778294,0.00016986,2]
[389576002,1759723857888,-371.78427549,0.00016986,2]
[389576004,1759723857897,-500.0,0.00016986,2]
[389576006,1759723857906,-500.0,0.00016986,2]
[389576008,1759723857915,-500.0,0.00016986,2]
[389576010,1759723857926,-500.0,0.00016986,2]
[389576012,1759723857935,-500.0,0.00016986,2]
[389576014,1759723857944,-500.0,0.00016986,2]
[389576016,1759723857953,-453.47819044,0.00016986,2]
[389576018,1759723857962,-500.0,0.00016986,2]
[389576020,1759723857972,-488.5030246,0.00016986,2]
[389576022,1759723857981,-500.0,0.00016986,2]
[389576024,1759723857990,-500.0,0.00016986,2]
[389576026,1759723857999,-662.82,0.00016986,2]
[389576028,1759723858009,-672.15,0.00016986,2]
[389576030,1759723858018,-500.0,0.00016986,2]
[389576032,1759723858027,-500.0,0.00016986,2]
[389576034,1759723858036,-329.0,0.00016986,2]
[389576036,1759723858046,-329.0,0.00016986,2]
[389576038,1759723858056,-329.0,0.00016986,2]
[389576040,1759723858065,-329.0,0.00016986,2]
[389576042,1759723858075,-500.0,0.00016986,2]
[389576044,1759723858085,-329.0,0.00016986,2]
[389576046,1759723858095,-329.0,0.00016986,2]
[389576048,1759723858104,-329.0,0.00016986,2]
[389576050,1759723858113,-291.81626889,0.00016986,2]
[389576052,1759723858122,-500.0,0.00016986,2]
[389576054,1759723858132,-329.0,0.00016986,2]
[389576056,1759723858141,-1552.97,0.00016986,2]
[389576058,1759723858150,-329.0,0.00016986,2]
[389576060,1759723858160,-329.0,0.00016986,2]
[389576062,1759723858170,-504.17151892,0.00016986,2]
[389576064,1759723858179,-329.0,0.00016986,2]
[389576066,1759723858189,-329.0,0.00016986,2]
[389576068,1759723858198,-329.0,0.00016986,2]
[389576070,1759723858208,-329.0,0.00016986,2]
[389576072,1759723858217,-329.0,0.00016986,2]
[389576074,1759723858226,-329.0,0.00016986,2]
[389576076,1759723858236,-329.0,0.00016986,2]
[389576078,1759723858246,-329.0,0.00016986,2]
[389576080,1759723858255,-329.0,0.00016986,2]
[389576082,1759723858264,-329.0,0.00016986,2]
[389576084,1759723858273,-329.0,0.00016986,2]
[389576086,1759723858282,-329.0,0.00016986,2]
[389576088,1759723858291,-329.0,0.00016986,2]
[389576090,1759723858301,-329.0,0.00016986,2]
[389576092,1759723858310,-329.0,0.00016986,2]
[389576094,1759723858319,-329.0,0.00016986,2]
[389576096,1759723858329,-500.0,0.00016986,2]
[389576098,1759723858340,-329.0,0.00016986,2]
[389576100,1759723858354,-329.0,0.00016986,2]
[389576102,1759723858363,-329.0,0.00016986,2]
[389576104,1759723858371,-329.0,0.00016986,2]
[389576106,1759723858380,-500.0,0.00016986,2]
[389576108,1759723858390,-329.0,0.00016986,2]
[389576110,1759723858399,-329.0,0.00016986,2]
[389576112,1759723858409,-329.0,0.00016986,2]
[389576114,1759723858418,-527.3826313,0.00016986,2]
[389576116,1759723858426,-329.0,0.00016986,2]
[389576118,1759723858435,-500.0,0.00016986,2]
[389576120,1759723858444,-172.0,0.00016986,2]
[389576122,1759723858453,-173.44291476,0.00016986,2]
[389576124,1759723858463,-500.0,0.00016986,2]
[389576126,1759723858472,-500.0,0.00016986,2]
[389576127,1759723858481,-500.0,0.00016986,2]
[389576129,1759723858490,-500.0,0.00016986,2]
[389576130,1759723858499,-227.76512079,0.00016986,2]
[389576131,1759723858508,-500.0,0.00016986,2]
[389576132,1759723858518,-500.0,0.00016986,2]
[389576133,1759723858527,-500.0,0.00016986,2]
[389576134,1759723858536,-166.0,0.00016986,2]
[389576136,1759723858545,-166.0,0.00016986,2]
[389576137,1759723858554,-500.0,0.00016986,2]
[389576139,1759723858562,-500.0,0.00016986,2]
[389576141,1759723858571,-483.01008837,0.00016986,2]
[389576143,1759723858583,-498.85988071,0.00016986,2]
[389576145,1759723858594,-1446.12,0.00016986,2]
[389576147,1759723858603,-447.45996419,0.00016986,2]
[389576149,1759723858612,-500.0,0.00016986,2]
[389576151,1759723858621,-964.86,0.00016986,2]
[389576153,1759723858630,-500.0,0.00016986,2]
[389576155,1759723858639,-615.73,0.00016986,2]
[389576157,1759723858648,-500.0,0.00016986,2]
[389576159,1759723858657,-500.0,0.00016986,2]
[389576161,1759723858666,-822.39,0.00016986,2]
[389576163,1759723858675,-505.16230699,0.00016986,2]
[389576165,1759723858684,-500.0,0.00016986,2]
[389576167,1759723858693,-500.0,0.00016986,2]
[389576169,1759723858703,-443.78285216,0.00016986,2]
[389576171,1759723858712,-500.0,0.00016986,2]
[389576173,1759723858722,-883.1,0.00016986,2]
[389576175,1759723858731,-500.0,0.00016986,2]
[389576177,1759723858740,-500.0,0.00016986,2]
[389576179,1759723858749,-500.0,0.00016986,2]
[389576181,1759723858758,-500.0,0.00016986,2]
[389576183,1759723858767,-500.0,0.00016986,2]
[389576185,1759723858776,-500.0,0.00016986,2]
[389576187,1759723858785,-500.0,0.00016986,2]
[389576189,1759723858795,-500.0,0.00016986,2]
[389576192,1759723858806,-508.97774426,0.00016986,2]
[389576194,1759723858815,-662.57,0.00016986,2]
[389576196,1759723858824,-579.34,0.00016986,2]
[389576198,1759723858833,-511.22836969,0.00016986,2]
[389576200,1759723858841,-500.0,0.00016986,2]
[389576201,1759723858850,-491.61789862,0.00016986,2]
[389576203,1759723858859,-500.0,0.00016986,2]
[389576205,1759723858868,-500.0,0.00016986,2]
[389576208,1759723858877,-435.36786206,0.00016986,2]
[389576210,1759723858886,-500.0,0.00016986,2]
[389576212,1759723858895,-883.97,0.00016986,2]
[389576214,1759723858905,-722.04,0.00016986,2]
[389576216,1759723858914,-630.48,0.00016986,2]
[389576218,1759723858923,-500.0,0.00016986,2]
[389576220,1759723858931,-500.0,0.00016986,2]
[389576222,1759723858941,-500.0,0.00016986,2]
[389576224,1759723858950,-166.0,0.00016986,2]
[389576226,1759723858959,-1282.56,0.00016986,2]
[389576228,1759723858968,-480.0,0.00016986,2]
[389576230,1759723858978,-500.0,0.00016986,2]
[389576232,1759723858987,-500.0,0.00016986,2]
[389576234,1759723858996,-500.0,0.00016986,2]
[389576236,1759723859004,-540.15,0.00016986,2]
[389576238,1759723859014,-1361.66,0.00016986,2]
[389576240,1759723859026,-500.0,0.00016986,2]
[389576241,1759723859037,-162.0,0.00016986,2]
[389576244,1759723859047,-162.0,0.00016986,2]
[389576246,1759723859056,-162.0,0.00016986,2]
[389576248,1759723859065,-500.0,0.00016986,2]
[389576250,1759723859080,-484.81992879,0.00016986,2]
[389576252,1759723859089,-500.0,0.00016986,2]
[389576253,1759723859098,-596.09,0.00016986,2]
[389576255,1759723859106,-500.0,0.00016986,2]
[389576257,1759723859116,-500.0,0.00016986,2]
[389576259,1759723859125,-500.0,0.00016986,2]
[389576261,1759723859133,-500.0,0.00016986,2]
[389576263,1759723859142,-500.0,0.00016986,2]
[389576265,1759723859153,-500.0,0.00016986,2]
[389576267,1759723859162,-522.15,0.00016986,2]
[389576269,1759723859171,-545.59430088,0.00016986,2]
[389576271,1759723859180,-500.0,0.00016986,2]
[389576273,1759723859189,-500.0,0.00016986,2]
[389576275,1759723859198,-893.87,0.00016986,2]
[389576277,1759723859207,-500.0,0.00016986,2]
[389576279,1759723859216,-500.0,0.00016986,2]
[389576281,1759723859225,-500.0,0.00016986,2]
[389576283,1759723859235,-500.0,0.00016986,2]
[389576285,1759723859244,-4935.53,0.00016986,2]
[389576287,1759723859254,-500.0,0.00016986,2]
[389576289,1759723859263,-1198.4,0.00016986,2]
[389576291,1759723859272,-500.0,0.00016986,2]
[389576293,1759723859281,-500.0,0.00016986,2]
[389576295,1759723859290,-500.0,0.00016986,2]
[389576297,1759723859300,-698.85,0.00016986,2]
[389576299,1759723859308,-500.0,0.00016986,2]
[389576301,1759723859317,-844.68,0.00016986,2]
[389576304,1759723859327,-509.75,0.00016986,2]
[389576305,1759723859336,-1392.88,0.00016986,2]
[389576308,1759723859345,-500.0,0.00016986,2]
[389576309,1759723859354,-972.7,0.00016986,2]
[389576312,1759723859363,-500.0,0.00016986,2]
[389576313,1759723859372,-890.87,0.00016986,2]
[389576315,1759723859381,-8493.09,0.00016986,2]
[389576318,1759723859390,-692.93,0.00016986,2]
[389576320,1759723859399,-780.82,0.00016986,2]
[389576322,1759723859408,-1349.17,0.00016986,2]
[389576324,1759723859417,-3912.65,0.00016986,2]
[389576325,1759723859427,-703.15,0.00016986,2]
[389576328,1759723859437,-690.11,0.00016986,2]
[389576330,1759723859448,-500.0,0.00016986,2]
[389576331,1759723859457,-500.0,0.00016986,2]
[389576333,1759723859467,-500.0,0.00016986,2]
[389576335,1759723859477,-913.55,0.00016986,2]
[389576338,1759723859488,-500.0,0.00016986,2]
[389576340,1759723859497,-6856.89,0.00016986,2]
[389576341,1759723859506,-500.0,0.00016986,2]
[389576343,1759723859517,-500.0,0.00016986,2]
[389576345,1759723859527,-503.69383834,0.00016986,2]
[389576347,1759723859536,-668.17,0.00016986,2]
[389576349,1759723859545,-1467.04,0.00016986,2]
[389576351,1759723859554,-1297.35,0.00016986,2]
[389576353,1759723859564,-500.0,0.00016986,2]
[389576356,1759723859573,-500.0,0.00016986,2]
[389576358,1759723859589,-500.0,0.00016986,2]
[389576360,1759723859599,-3602.48,0.00016986,2]
[389576362,1759723859608,-500.0,0.00016986,2]
[389576364,1759723859617,-500.0,0.00016986,2]
[389576366,1759723859627,-500.0,0.00016986,2]
[389576368,1759723859636,-3217.79,0.00016986,2]
[389576370,1759723859645,-500.0,0.00016986,2]
[389576372,1759723859655,-819.59,0.00016986,2]
[389576374,1759723859666,-500.0,0.00016986,2]
[389576376,1759723859675,-500.0,0.00016986,2]
[389576378,1759723859684,-500.0,0.00016986,2]
[389576380,1759723859693,-500.0,0.00016986,2]
[389576382,1759723859702,-500.0,0.00016986,2]
[389576383,1759723859711,-500.0,0.00016986,2]
[389576386,1759723859720,-500.0,0.00016986,2]
[389576387,1759723859730,-500.0,0.00016986,2]
[389576389,1759723859739,-10079.61,0.00016986,2]
[389576391,1759723859748,-500.0,0.00016986,2]
[389576393,1759723859757,-762.34,0.00016986,2]
[389576396,1759723859767,-575.43,0.00016986,2]
[389576398,1759723859776,-500.0,0.00016986,2]
[389576400,1759723859786,-1227.35,0.00016986,2]
[389576402,1759723859794,-513.18,0.00016986,2]
[389576403,1759723859803,-1685.91,0.00016986,2]
[389576406,1759723859813,-999.44,0.00016986,2]
[389576408,1759723859822,-500.0,0.00016986,2]
[389576409,1759723859832,-500.0,0.00016986,2]
[389576411,1759723859842,-500.0,0.00016986,2]
[389576414,1759723859852,-2369.05,0.00016986,2]
[389576415,1759723859861,-500.0,0.00016986,2]
[389576418,1759723859871,-500.0,0.00016986,2]
[389576420,1759723859880,-500.0,0.00016986,2]
[389576422,1759723859889,-1270.96,0.00016986,2]
[389576424,1759723859898,-1117.65,0.00016986,2]
[389576426,1759723859907,-3482.77,0.00016986,2]
[389576428,1759723859916,-647.5,0.00016986,2]
[389576430,1759723859925,-1182.74,0.00016986,2]
[389576432,1759723859935,-500.0,0.00016986,2]
[389576434,1759723859945,-500.0,0.00016986,2]
[389576436,1759723859954,-642.62,0.00016986,2]
[389576438,1759723859963,-644.88,0.00016986,2]
[389576440,1759723859972,-1709.3,0.00016986,2]
[389576442,1759723859981,-1405.76,0.00016986,2]
[389576444,1759723859990,-4118.02,0.00016986,2]
[389576446,1759723859999,-500.0,0.00016986,2]
[389576448,1759723860009,-500.0,0.00016986,2]
[389576450,1759723860020,-500.0,0.00016986,2]
[389576452,1759723860029,-500.0,0.00016986,2]
[389576454,1759723860039,-500.0,0.00016986,2]
[389576456,1759723860050,-970.74,0.00016986,2]
[389576458,1759723860060,-500.0,0.00016986,2]
[389576460,1759723860070,-1277.72211029,0.00016986,2]
[389576654,1759723861950,559.32700886,0.00016432,10]
[389578324,1759723970412,1142.72,0.00028,120]
[389578325,1759724046248,15740.0,0.00028767,120]
[389578326,1759724124917,1000.0,0.00028767,120]
[389578327,1759724162827,2500.0,0.00028767,120]
[389578328,1759724196704,2000.0,0.00028767,120]
[389578329,1759724244497,9808.321395,0.00015,2]
[389578330,1759724244519,10000.01,0.00015,2]
[389578331,1759724244541,10000.01,0.00015,2]
[389578332,1759724244562,10000.01,0.00015,2]
[389578333,1759724244583,10000.01,0.00015,2]
[389578334,1759724244604,10000.01,0.00015,2]
[389578335,1759724244627,4486.62492388,0.00015,2]
[389578336,1759724250858,3000.0,0.00028767,120]
[389578337,1759724270973,3731.0,0.00028767,120]
[389578338,1759724428142,200.0,0.00027,120]
[389578339,1759724428395,371.48002,0.00028,120]
[389578340,1759724433997,1000.0,0.00028767,120]
[389578341,1759724465609,1000.0,0.00028767,120]
[389578342,1759724480268,1146.2,0.00028767,120]
[389578343,1759724622373,800.0,0.0002876,120]
[389578344,1759724634879,800.0,0.0002876,120]
[389578345,1759724762988,200.0,0.0003188,120]
[389578346,1759724773547,43336.88220012,0.0003188,120]
[389578400,1759724818908,3057.93,0.00025,30]
[389578401,1759724830134,37741.0,0.0003188,60]
[389578404,1759724848058,614.86,0.0003188,60]
[389578405,1759724848305,614.86,0.0003188,60]
[389578406,1759724848552,614.86,0.0003188,60]
[389578407,1759724848583,856.69,0.0003188,60]
[389578408,1759724848805,614.86,0.0003188,60]
[389578409,1759724848845,856.69,0.0003188,60]
[389578410,1759724849083,614.86,0.0003188,60]
[389578411,1759724849129,500.0,0.0003188,60]
[389578412,1759724849308,614.86,0.0003188,60]
[389578413,1759724849438,856.69,0.0003188,60]
[389578414,1759724849470,500.0,0.0003188,60]
[389578415,1759724849549,614.86,0.0003188,60]
[389578416,1759724849696,856.69,0.0003188,60]
[389578417,1759724849734,500.0,0.0003188,60]
[389578418,1759724849785,614.86,0.0003188,60]
[389578419,1759724849945,856.69,0.0003188,60]
[389578420,1759724849977,500.0,0.0003188,60]
[389578421,1759724850013,614.86,0.0003188,60]
[389578422,1759724850207,557.16625694,0.0003188,60]
[389578423,1759724850240,856.69,0.0003188,60]
[389578424,1759724850272,614.86,0.0003188,60]
[389578425,1759724850496,614.86,0.0003188,60]
[389578426,1759724850734,614.86,0.0003188,60]
[389578427,1759724850973,614.86,0.0003188,60]
[389578428,1759724851011,856.69,0.0003188,60]
[389578429,1759724851075,856.63,0.0003188,60]
[389578430,1759724851219,614.86,0.0003188,60]
[389578431,1759724851252,856.69,0.0003188,60]
[389578432,1759724851344,856.63,0.0003188,60]
[389578433,1759724851497,856.69,0.0003188,60]
[389578434,1759724851605,856.63,0.0003188,60]
[389578435,1759724851635,614.86,0.0003188,60]
[389578436,1759724851745,856.69,0.0003188,60]
[389578437,1759724851819,856.63,0.0003188,60]
[389578438,1759724851857,614.86,0.0003188,60]
[389578439,1759724851971,856.69,0.0003188,60]
[389578440,1759724852083,856.63,0.0003188,60]
[389578441,1759724852221,856.69,0.0003188,60]
[389578442,1759724852251,614.86,0.0003188,60]
[389578443,1759724852314,856.63,0.0003188,60]
[389578444,1759724852470,856.69,0.0003188,60]
[389578445,1759724852499,614.86,0.0003188,60]
[389578446,1759724852609,856.63,0.0003188,60]
[389578447,1759724852704,856.69,0.0003188,60]
[389578448,1759724852735,614.86,0.0003188,60]
[389578449,1759724852839,856.63,0.0003188,60]
[389578450,1759724852971,614.86,0.0003188,60]
[389578451,1759724853001,856.69,0.0003188,60]
[389578452,1759724853089,856.63,0.0003188,60]
[389578453,1759724853206,614.86,0.0003188,60]
[389578454,1759724853243,856.69,0.0003188,60]
[389578455,1759724853334,856.63,0.0003188,60]
[389578456,1759724853457,614.86,0.0003188,60]
[389578457,1759724853501,856.69,0.0003188,60]
[389578458,1759724853532,501.74884647,0.0003188,60]
[389578459,1759724853564,856.63,0.0003188,60]
[389578460,1759724853682,614.86,0.0003188,60]
[389578461,1759724853735,856.69,0.0003188,60]
[389578462,1759724853784,856.63,0.0003188,60]
[389578463,1759724853968,856.69,0.0003188,60]
[389578464,1759724854156,856.63,0.0003188,60]
[389578465,1759724854213,856.69,0.0003188,60]
[389578466,1759724854271,856.63,0.0003188,60]
[389578467,1759724854462,856.69,0.0003188,60]
[389578468,1759724854503,856.63,0.0003188,60]
[389578469,1759724854729,856.69,0.0003188,60]
[389578470,1759724854767,856.63,0.0003188,60]
[389578471,1759724854998,856.69,0.0003188,60]
[389578472,1759724855071,856.63,0.0003188,60]
[389578473,1759724855125,615.02,0.0003188,60]
[389578474,1759724855367,856.74079349,0.0003188,60]
[389578475,1759724855401,500.0,0.0003188,60]
[389578476,1759724855458,856.63,0.0003188,60]
[389578477,1759724855546,500.0,0.0003188,60]
[389578478,1759724855642,856.63,0.0003188,60]
[389578479,1759724855837,856.63,0.0003188,60]
[389578480,1759724855917,4095.62,0.0003188,60]
[389578481,1759724856168,4095.62,0.0003188,60]
[389578482,1759724856265,856.63,0.0003188,60]
[389578483,1759724856451,4095.62,0.0003188,60]
[389578484,1759724856522,856.63,0.0003188,60]
[389578485,1759724856651,4095.62,0.0003188,60]
[389578486,1759724856725,856.63,0.0003188,60]
[389578487,1759724856884,4095.62,0.0003188,60]
[389578488,1759724856917,1019.41,0.0003188,60]
[389578489,1759724856949,856.72805839,0.0003188,60]
[389578490,1759724857122,4095.62,0.0003188,60]
[389578491,1759724857180,1019.41,0.0003188,60]
[389578492,1759724857316,500.0,0.0003188,60]
[389578493,1759724857376,4095.62,0.0003188,60]
[389578494,1759724857474,1019.41,0.0003188,60]
[389578495,1759724857531,502.34924423,0.0003188,60]
[389578496,1759724857570,172.74701761,0.0003188,60]
[389578497,1759724857615,4095.62,0.0003188,60]
[389578498,1759724857698,1019.41,0.0003188,60]
[389578499,1759724857838,4095.62,0.0003188,60]
[389578500,1759724857922,1019.41,0.0003188,60]
[389578501,1759724858104,4095.62,0.0003188,60]
[389578502,1759724858183,1019.41,0.0003188,60]
[389578503,1759724858325,4095.62,0.0003188,60]
[389578504,1759724858370,500.0,0.0003188,60]
[389578505,1759724858416,1019.41,0.0003188,60]
[389578506,1759724858570,4095.62,0.0003188,60]
[389578507,1759724858614,500.0,0.0003188,60]
[389578508,1759724858654,1019.41,0.0003188,60]
[389578509,1759724858716,500.0,0.0003188,60]
[389578510,1759724858802,4095.62,0.0003188,60]
[389578511,1759724858837,500.0,0.0003188,60]
[389578512,1759724858939,1019.41,0.0003188,60]
[389578513,1759724858976,635.28350006,0.0003188,60]
[389578514,1759724859015,4095.62,0.0003188,60]
[389578515,1759724859057,500.0,0.0003188,60]
[389578516,1759724859093,503.03926641,0.0003188,60]
[389578517,1759724859287,4095.62,0.0003188,60]
[389578518,1759724859333,506.86088348,0.0003188,60]
[389578519,1759724859533,4095.62,0.0003188,60]
[389578520,1759724859571,1019.41,0.0003188,60]
[389578521,1759724859763,4095.62,0.0003188,60]
[389578522,1759724859801,1019.41,0.0003188,60]
[389578523,1759724860006,1019.41,0.0003188,60]
[389578524,1759724860124,4095.62,0.0003188,60]
[389578525,1759724860243,1019.41,0.0003188,60]
[389578526,1759724860374,4095.62,0.0003188,60]
[389578527,1759724860547,1019.41,0.0003188,60]
[389578528,1759724860612,500.0,0.0003188,60]
[389578529,1759724860653,4095.62,0.0003188,60]
[389578530,1759724860693,501.12130617,0.0003188,60]
[389578531,1759724860761,1019.41,0.0003188,60]
[389578532,1759724860798,486.31452965,0.0003188,60]
[389578533,1759724860836,500.0,0.0003188,60]
[389578534,1759724860870,4095.62,0.0003188,60]
[389578535,1759724861279,1019.41,0.0003188,60]
[389578536,1759724861334,500.0,0.0003188,60]
[389578537,1759724861393,1019.41,0.0003188,60]
[389578538,1759724861425,500.0,0.0003188,60]
[389578539,1759724861478,1019.41,0.0003188,60]
[389578540,1759724861553,500.0,0.0003188,60]
[389578541,1759724861762,1019.41,0.0003188,60]
[389578542,1759724861795,504.50136587,0.0003188,60]
[389578543,1759724861995,1019.41,0.0003188,60]
[389578544,1759724862207,1019.41,0.0003188,60]
[389578545,1759724862437,1019.41,0.0003188,60]
[389578546,1759724862670,1019.41,0.0003188,60]
[389578547,1759724862928,1019.59760187,0.0003188,60]
[389578548,1759724863103,4095.62,0.0003188,60]
[389578549,1759724863346,4095.62,0.0003188,60]
[389578550,1759724863580,4095.78351859,0.0003188,60]
[389578551,1759724864621,500.0,0.0003188,60]
[389578552,1759724864851,500.0,0.0003188,60]
[389578553,1759724865080,500.0,0.0003188,60]
[389578554,1759724865329,500.0,0.0003188,60]
[389578555,1759724865604,305.29489372,0.0003188,60]
[389578556,1759724866502,500.0,0.00031886,60]
[389578557,1759724866706,500.0,0.00031886,60]
[389578558,1759724866759,500.0,0.00031886,60]
[389578559,1759724867000,224.28246975,0.00031886,60]
[389578560,1759724867508,500.0,0.00031886,60]
[389578561,1759724867758,500.0,0.00031886,60]
[389578562,1759724868007,500.0,0.00031886,60]
[389578563,1759724868260,500.0,0.00031886,60]
[389578564,1759724871269,500.0,0.00031886,60]
[389578565,1759724871529,482.70137275,0.00031886,60]
[389578566,1759724871563,500.0,0.00031886,60]
[389578567,1759724871664,296.61077312,0.00015561,2]
[389578568,1759724871774,500.0,0.00031886,60]
[389578569,1759724872001,500.0,0.00031886,60]
[389578570,1759724872234,500.0,0.00031886,60]
[389578571,1759724872492,500.0,0.00031886,60]
[389578572,1759724872525,593.22154625,0.00015661,2]
[389578573,1759724872730,500.0,0.00031886,60]